[Event "44th Chess Olympiad Open 2022"]
[Site "Chennai"]
[Date "2022.08.03"]
[Round "6.84"]
[White "Nathoo, Loris"]
[Black "Bongo Akanga Ndjila, Barthelemy"]
[Result "1-0"]
[WhiteElo "1695"]
[BlackElo "1803"]
[Annotator "NA RC"]
[PlyCount "89"]
[EventDate "2022.??.??"]
[TimeControl "60"]

1. d4 {[%emt 0:00:07]} d5 {[%emt 0:00:25]} 2. Bf4 {[%emt 0:00:08]} Bf5 {
[%emt 0:00:35]} 3. e3 {[%emt 0:01:01]} e6 {[%emt 0:00:09]} 4. Bd3 {[%emt 0:00:
00]} Bg6 {[%emt 0:01:03]} 5. Nf3 {[%emt 0:03:22]} Bd6 {[%emt 0:02:28]} 6. Ne5 {
[%emt 0:03:14]} Bxd3 {[%emt 0:00:38]} 7. cxd3 {[%emt 0:02:15]} Nf6 {[%emt 0:00:
00]} 8. Nd2 {[%emt 0:06:28]} c6 {[%emt 0:01:28]} 9. Bg3 {[%emt 0:04:23]} Qc7 {
[%emt 0:00:10]} 10. f4 {[%emt 0:02:39]} O-O {[%emt 0:01:17]} 11. O-O {[%emt 0:
00:00]} Nfd7 {[%emt 0:00:15]} 12. Ndf3 {[%emt 0:05:11]} f6 {[%emt 0:00:19]} 13.
Ng4 {[%emt 0:02:05]} Na6 {[%emt 0:01:45]} 14. Rc1 {[%emt 0:05:58]} Rae8 {
[%emt 0:03:00]} 15. Qb3 {[%emt 0:08:59]} Kh8 {[%emt 0:09:01]} 16. Qc3 {[%emt 0:
00:00]} h5 {[%emt 0:09:46]} 17. Nf2 {[%emt 0:00:26]} e5 {[%emt 0:00:16]} 18.
Nh3 {[%emt 0:11:20]} exd4 {[%emt 0:01:31]} 19. Nxd4 {[%emt 0:06:26]} Bb4 {
[%emt 0:30:00]} 20. Qc2 {[%emt 0:01:22]} Rxe3 {[%emt 0:00:10]} 21. Nf5 {
[%emt 0:00:46]} Ree8 {[%emt 0:03:37]} 22. a3 {[%emt 0:00:26]} Ba5 {[%emt 0:00:
00]} 23. Qd1 {[%emt 0:00:21]} Bb6+ {[%emt 0:01:46]} 24. d4 {[%emt 0:03:54]} g6
{[%emt 0:02:27]} 25. Nh4 {[%emt 0:00:06]} Kg7 {[%emt 0:12:26]} 26. Nxg6 {
[%emt 0:00:19]} Rf7 {[%emt 0:00:23]} 27. f5 {[%emt 0:01:53]} Qd8 {[%emt 0:00:
00]} 28. Nhf4 {[%emt 0:00:18]} Nf8 {[%emt 0:01:40]} 29. Nxf8 {[%emt 0:05:30]}
Rfxf8 {[%emt 0:00:42]} 30. Ne6+ {[%emt 0:02:48]} Rxe6 {[%emt 0:00:03]} 31. fxe6
{[%emt 0:00:09]} Qe8 {[%emt 0:00:13]} 32. Re1 {[%emt 0:03:10]} Nc7 {[%emt 0:00:
00]} 33. e7 {[%emt 0:02:47]} Rh8 {[%emt 0:00:08]} 34. Bxc7 {[%emt 0:01:10]}
Bxc7 {[%emt 0:00:11]} 35. Qe2 {[%emt 0:00:11]} Rh6 {[%emt 0:03:51]} 36. Qe6 {
[%emt 0:01:22]} Bf4 {[%emt 0:00:52]} 37. Rc3 {[%emt 0:01:10]} Rg6 {[%emt 0:00:
00]} 38. Rf3 {[%emt 0:00:30]} Bg5 {[%emt 0:00:55]} 39. Qd6 {[%emt 0:01:37]} Kf7
{[%emt 0:03:17]} 40. Qc7 {[%emt 0:00:22]} b5 {[%emt 0:00:56]} 41. Qxa7 {
[%emt 0:30:44]} Rg8 {[%emt 0:31:06]} 42. Qc7 {[%emt 0:01:59]} Kg6 {[%emt 0:00:
00]} 43. Qd6 {[%emt 0:00:00]} Rg7 {[%emt 0:00:00]} 44. Re6 {[%emt 0:00:00]} Rf7
{[%emt 0:00:00]} 45. Qd8 {[%emt 0:00:00]} 1-0

[Event "44th Chess Olympiad Open 2022"]
[Site "Chennai"]
[Date "2022.08.03"]
[Round "6.84"]
[White "Bongo Ngombele, Tary"]
[Black "Neto, Roberto"]
[Result "0-1"]
[WhiteElo "1688"]
[BlackElo "1663"]
[Annotator "NA RC"]
[PlyCount "134"]
[EventDate "2022.??.??"]
[TimeControl "60"]

1. e4 {[%emt 0:00:03]} e6 {[%emt 0:00:39]} 2. d4 {[%emt 0:00:09]} d5 {[%emt 0:
00:00]} 3. e5 {[%emt 0:00:32]} c5 {[%emt 0:00:10]} 4. c3 {[%emt 0:00:09]} Nc6 {
[%emt 0:00:39]} 5. Nf3 {[%emt 0:00:15]} Qb6 {[%emt 0:02:52]} 6. Be2 {[%emt 0:
00:00]} cxd4 {[%emt 0:01:23]} 7. cxd4 {[%emt 0:00:09]} Nge7 {[%emt 0:01:51]} 8.
Bd3 {[%emt 0:01:48]} Bd7 {[%emt 0:10:58]} 9. Bc2 {[%emt 0:01:30]} Nb4 {[%emt 0:
00:00]} 10. Na3 {[%emt 0:01:08]} Nxc2+ {[%emt 0:02:04]} 11. Nxc2 {[%emt 0:00:
00]} Bb5 {[%emt 0:16:11]} 12. Ne3 {[%emt 0:01:32]} Nc6 {[%emt 0:05:05]} 13. a3
{[%emt 0:05:25]} Be7 {[%emt 0:10:08]} 14. Qb3 {[%emt 0:02:48]} Na5 {[%emt 0:00:
00]} 15. Qc3 {[%emt 0:02:56]} Bd7 {[%emt 0:06:08]} 16. Bd2 {[%emt 0:14:42]} Nb3
{[%emt 0:04:40]} 17. Rb1 {[%emt 0:02:13]} Rc8 {[%emt 0:02:07]} 18. Qd3 {
[%emt 0:00:12]} Qb5 {[%emt 0:00:49]} 19. Qxb5 {[%emt 0:01:19]} Bxb5 {[%emt 0:
00:00]} 20. Bb4 {[%emt 0:07:07]} Bxb4+ {[%emt 0:04:23]} 21. axb4 {[%emt 0:00:
00]} Nc1 {[%emt 0:01:36]} 22. Kd2 {[%emt 0:05:46]} Nd3 {[%emt 0:00:55]} 23. Nd1
{[%emt 0:00:32]} Nxb4 {[%emt 0:01:05]} 24. Nc3 {[%emt 0:00:21]} Bd7 {[%emt 0:
00:00]} 25. Rhe1 {[%emt 0:01:58]} O-O {[%emt 0:01:28]} 26. Ng1 {[%emt 0:00:37]}
Rc7 {[%emt 0:04:19]} 27. f4 {[%emt 0:00:12]} Rfc8 {[%emt 0:01:21]} 28. Nf3 {
[%emt 0:00:10]} Rc4 {[%emt 0:00:52]} 29. g4 {[%emt 0:00:43]} a6 {[%emt 0:03:31]
} 30. g5 {[%emt 0:01:11]} Nc6 {[%emt 0:01:26]} 31. Ke3 {[%emt 0:00:22]} Ne7 {
[%emt 0:00:51]} 32. Nh4 {[%emt 0:01:06]} g6 {[%emt 0:00:36]} 33. Ne2 {[%emt 0:
00:00]} Rb4 {[%emt 0:02:55]} 34. Rec1 {[%emt 0:03:04]} Rxc1 {[%emt 0:00:45]}
35. Nxc1 {[%emt 0:00:29]} Bb5 {[%emt 0:00:30]} 36. Na2 {[%emt 0:00:36]} Rb3+ {
[%emt 0:00:57]} 37. Nc3 {[%emt 0:00:07]} Bc4 {[%emt 0:00:53]} 38. Kd2 {[%emt 0:
00:00]} b5 {[%emt 0:00:47]} 39. Ng2 {[%emt 0:28:20]} Nf5 {[%emt 0:00:39]} 40.
Ne2 {[%emt 0:03:15]} Bxe2 {[%emt 0:00:53]} 41. Kxe2 {[%emt 0:30:12]} Nxd4+ {
[%emt 0:30:14]} 42. Kf2 {[%emt 0:00:22]} Rf3+ {[%emt 0:01:28]} 43. Kg1 {
[%emt 0:00:53]} Ne2+ {[%emt 0:00:32]} 44. Kh1 {[%emt 0:00:26]} Nxf4 {[%emt 0:
00:00]} 45. Nh4 {[%emt 0:00:55]} Rh3 {[%emt 0:00:47]} 46. Ng2 {[%emt 0:00:27]}
Nxg2 {[%emt 0:00:11]} 47. Kxg2 {[%emt 0:00:03]} Rb3 {[%emt 0:00:02]} 48. h4 {
[%emt 0:01:03]} a5 {[%emt 0:00:52]} 49. Kh2 {[%emt 0:00:45]} a4 {[%emt 0:00:09]
} 50. Kg2 {[%emt 0:00:37]} a3 {[%emt 0:00:08]} 51. Kf1 {[%emt 0:00:15]} Rxb2 {
[%emt 0:00:17]} 52. Rc1 {[%emt 0:01:02]} a2 {[%emt 0:00:27]} 53. Rc8+ {[%emt 0:
00:00]} Kg7 {[%emt 0:00:07]} 54. Ra8 {[%emt 0:00:18]} Rb1+ {[%emt 0:00:20]} 55.
Ke2 {[%emt 0:00:08]} a1=R {[%emt 0:00:29]} 56. Rb8 {[%emt 0:00:39]} b4 {
[%emt 0:00:44]} 57. h5 {[%emt 0:00:07]} gxh5 {[%emt 0:00:11]} 58. Kd3 {[%emt 0:
00:00]} b3 {[%emt 0:00:21]} 59. Kc3 {[%emt 0:00:24]} Rc1+ {[%emt 0:00:22]} 60.
Kb2 {[%emt 0:00:13]} Rab1+ {[%emt 0:00:23]} 61. Ka3 {[%emt 0:01:20]} h4 {
[%emt 0:00:14]} 62. Rb4 {[%emt 0:00:18]} Rc4 {[%emt 0:00:18]} 63. Rb5 {[%emt 0:
00:00]} h3 {[%emt 0:00:24]} 64. Rb6 {[%emt 0:00:29]} h2 {[%emt 0:00:13]} 65.
Rb5 {[%emt 0:00:10]} h1=Q {[%emt 0:00:40]} 66. g6 {[%emt 0:00:10]} Ra1+ {
[%emt 0:01:03]} 67. Kxb3 {[%emt 0:00:29]} Qb1# {[%emt 0:00:05]} 0-1

[Event "44th Chess Olympiad Open 2022"]
[Site "Chennai"]
[Date "2022.08.03"]
[Round "6.85"]
[White "Muhammed, Shuaau"]
[Black "Jaiswal Prashant S"]
[Result "1-0"]
[WhiteElo "1987"]
[BlackElo "1683"]
[Annotator "NA RC"]
[PlyCount "61"]
[EventDate "2022.??.??"]
[TimeControl "60"]

1. e4 {[%emt 0:00:04]} c6 {[%emt 0:00:50]} 2. d4 {[%emt 0:00:09]} d5 {[%emt 0:
00:00]} 3. e5 {[%emt 0:00:25]} Bf5 {[%emt 0:00:15]} 4. h4 {[%emt 0:00:13]} h5 {
[%emt 0:00:47]} 5. Bd3 {[%emt 0:00:07]} Bxd3 {[%emt 0:00:15]} 6. Qxd3 {[%emt 0:
00:00]} e6 {[%emt 0:00:56]} 7. Nf3 {[%emt 0:04:45]} Ne7 {[%emt 0:01:42]} 8.
Nbd2 {[%emt 0:01:13]} Nf5 {[%emt 0:01:44]} 9. Nb3 {[%emt 0:00:46]} Nd7 {
[%emt 0:01:34]} 10. Bg5 {[%emt 0:05:46]} Qc7 {[%emt 0:00:43]} 11. O-O {[%emt 0:
00:00]} c5 {[%emt 0:05:55]} 12. c4 {[%emt 0:04:48]} dxc4 {[%emt 0:13:58]} 13.
Qxc4 {[%emt 0:00:23]} Nb6 {[%emt 0:03:19]} 14. Qe2 {[%emt 0:05:02]} cxd4 {
[%emt 0:02:36]} 15. Nbxd4 {[%emt 0:04:05]} Nxd4 {[%emt 0:01:19]} 16. Nxd4 {
[%emt 0:00:03]} a6 {[%emt 0:02:18]} 17. Rac1 {[%emt 0:01:23]} Qd7 {[%emt 0:00:
00]} 18. Rfd1 {[%emt 0:00:42]} Nd5 {[%emt 0:00:09]} 19. Qe4 {[%emt 0:02:48]}
Be7 {[%emt 0:03:55]} 20. Nf5 {[%emt 0:07:25]} exf5 {[%emt 0:06:43]} 21. Qxd5 {
[%emt 0:00:16]} Qxd5 {[%emt 0:00:21]} 22. Rxd5 {[%emt 0:00:03]} Bxg5 {[%emt 0:
00:00]} 23. hxg5 {[%emt 0:00:02]} O-O {[%emt 0:06:35]} 24. Rd7 {[%emt 0:00:44]}
b5 {[%emt 0:02:51]} 25. Rcc7 {[%emt 0:00:45]} Rac8 {[%emt 0:01:07]} 26. Rxf7 {
[%emt 0:00:37]} Rxc7 {[%emt 0:00:19]} 27. Rxc7 {[%emt 0:00:03]} Rd8 {[%emt 0:
00:00]} 28. g6 {[%emt 0:05:19]} Re8 {[%emt 0:04:15]} 29. e6 {[%emt 0:00:21]}
Kf8 {[%emt 0:02:27]} 30. Rf7+ {[%emt 0:00:02]} Kg8 {[%emt 0:00:10]} 31. e7 {
[%emt 0:00:04]} 1-0

[Event "44th Chess Olympiad Open 2022"]
[Site "Chennai"]
[Date "2022.08.03"]
[Round "6.85"]
[White "Nadan, Avinesh"]
[Black "Ashraf, Ahmed Ramadan"]
[Result "0-1"]
[WhiteElo "1540"]
[BlackElo "1916"]
[Annotator "NA RC"]
[PlyCount "82"]
[EventDate "2022.??.??"]
[TimeControl "60"]

1. e4 {[%emt 0:00:05]} c5 {[%emt 0:00:43]} 2. Nf3 {[%emt 0:00:36]} e6 {[%emt 0:
00:00]} 3. Be2 {[%emt 0:03:02]} Nc6 {[%emt 0:00:14]} 4. c3 {[%emt 0:01:41]} g6
{[%emt 0:01:14]} 5. d4 {[%emt 0:01:58]} cxd4 {[%emt 0:00:07]} 6. cxd4 {[%emt 0:
00:00]} Bg7 {[%emt 0:00:08]} 7. Nc3 {[%emt 0:00:55]} a6 {[%emt 0:01:04]} 8. O-O
{[%emt 0:04:05]} Nge7 {[%emt 0:01:44]} 9. d5 {[%emt 0:01:08]} exd5 {[%emt 0:00:
00]} 10. exd5 {[%emt 0:02:33]} Ne5 {[%emt 0:01:30]} 11. d6 {[%emt 0:01:17]}
N7c6 {[%emt 0:01:17]} 12. Nd5 {[%emt 0:04:11]} O-O {[%emt 0:03:49]} 13. Be3 {
[%emt 0:01:27]} Nxf3+ {[%emt 0:02:27]} 14. Bxf3 {[%emt 0:00:11]} Bxb2 {[%emt 0:
00:00]} 15. Bb6 {[%emt 0:00:21]} Qg5 {[%emt 0:02:49]} 16. Rb1 {[%emt 0:01:11]}
Be5 {[%emt 0:02:06]} 17. Nc7 {[%emt 0:01:20]} Rb8 {[%emt 0:01:15]} 18. Bxc6 {
[%emt 0:00:17]} bxc6 {[%emt 0:01:09]} 19. f4 {[%emt 0:00:02]} Bxf4 {[%emt 0:00:
00]} 20. Kh1 {[%emt 0:06:00]} Qh4 {[%emt 0:05:38]} 21. h3 {[%emt 0:00:41]} Qg3
{[%emt 0:01:23]} 22. Bg1 {[%emt 0:00:18]} Rxb1 {[%emt 0:00:17]} 23. Qxb1 {
[%emt 0:00:14]} Bxd6 {[%emt 0:00:46]} 24. Na8 {[%emt 0:00:34]} c5 {[%emt 0:00:
00]} 25. Qe4 {[%emt 0:01:36]} c4 {[%emt 0:01:12]} 26. Nb6 {[%emt 0:00:54]} c3 {
[%emt 0:01:11]} 27. Nc4 {[%emt 0:02:31]} Bb8 {[%emt 0:01:56]} 28. Rf3 {[%emt 0:
00:00]} Qc7 {[%emt 0:00:16]} 29. Rxc3 {[%emt 0:00:17]} Bb7 {[%emt 0:00:37]} 30.
Qc2 {[%emt 0:00:14]} Rc8 {[%emt 0:00:31]} 31. Re3 {[%emt 0:09:33]} d5 {[%emt 0:
00:00]} 32. Qe2 {[%emt 0:01:35]} dxc4 {[%emt 0:09:06]} 33. Re8+ {[%emt 0:00:53]
} Rxe8 {[%emt 0:00:15]} 34. Qxe8+ {[%emt 0:00:23]} Kg7 {[%emt 0:00:09]} 35.
Bd4+ {[%emt 0:00:41]} f6 {[%emt 0:00:19]} 36. Kg1 {[%emt 0:02:58]} Qh2+ {
[%emt 0:01:42]} 37. Kf1 {[%emt 0:00:41]} Qxg2+ {[%emt 0:00:12]} 38. Ke1 {
[%emt 0:00:41]} Bg3+ {[%emt 0:00:15]} 39. Kd1 {[%emt 0:00:45]} Bf3+ {[%emt 0:
00:00]} 40. Kc1 {[%emt 0:00:41]} Bf4+ {[%emt 0:00:03]} 41. Kb1 {[%emt 0:31:41]}
Qf1+ {[%emt 0:30:25]} 0-1

[Event "44th Chess Olympiad Open 2022"]
[Site "Chennai"]
[Date "2022.08.03"]
[Round "6.85"]
[White "Prakash, Prashil"]
[Black "Ahmed Aboobakuru"]
[Result "0-1"]
[WhiteElo "1514"]
[BlackElo "1676"]
[Annotator "NA RC"]
[PlyCount "100"]
[EventDate "2022.??.??"]
[TimeControl "60"]

1. d4 {[%emt 0:00:26]} Nf6 {[%emt 0:00:19]} 2. Nf3 {[%emt 0:00:40]} e6 {
[%emt 0:00:55]} 3. c4 {[%emt 0:00:32]} b6 {[%emt 0:00:44]} 4. Nc3 {[%emt 0:00:
00]} Bb7 {[%emt 0:00:28]} 5. Bg5 {[%emt 0:01:51]} Be7 {[%emt 0:02:19]} 6. e3 {
[%emt 0:00:37]} c5 {[%emt 0:06:32]} 7. Bd3 {[%emt 0:07:41]} cxd4 {[%emt 0:00:
00]} 8. exd4 {[%emt 0:00:35]} O-O {[%emt 0:01:29]} 9. Bxf6 {[%emt 0:04:01]}
Bxf6 {[%emt 0:00:22]} 10. h4 {[%emt 0:00:10]} d6 {[%emt 0:00:58]} 11. Bxh7+ {
[%emt 0:03:01]} Kh8 {[%emt 0:04:15]} 12. Bc2 {[%emt 0:05:27]} Nd7 {[%emt 0:00:
00]} 13. Ng5 {[%emt 0:01:58]} g6 {[%emt 0:04:38]} 14. f4 {[%emt 0:02:09]} Kg7 {
[%emt 0:00:29]} 15. Qd2 {[%emt 0:01:58]} Rh8 {[%emt 0:00:28]} 16. O-O-O {
[%emt 0:00:21]} Rc8 {[%emt 0:02:45]} 17. Rde1 {[%emt 0:02:00]} Rxc4 {[%emt 0:
00:00]} 18. Rxe6 {[%emt 0:00:35]} Bxg5 {[%emt 0:00:30]} 19. Rxd6 {[%emt 0:00:
00]} Qc7 {[%emt 0:01:00]} 20. Nb5 {[%emt 0:03:14]} Rxc2+ {[%emt 0:00:22]} 21.
Qxc2 {[%emt 0:00:16]} Bxf4+ {[%emt 0:00:27]} 22. Kb1 {[%emt 0:01:01]} Qxc2+ {
[%emt 0:00:23]} 23. Kxc2 {[%emt 0:00:02]} Bxd6 {[%emt 0:00:23]} 24. Nxd6 {
[%emt 0:00:09]} Bxg2 {[%emt 0:00:55]} 25. Rh2 {[%emt 0:00:29]} Bc6 {[%emt 0:00:
00]} 26. Rf2 {[%emt 0:01:28]} f6 {[%emt 0:02:31]} 27. Rf4 {[%emt 0:00:00]} Nf8
{[%emt 0:00:42]} 28. d5 {[%emt 0:01:45]} Bd7 {[%emt 0:04:39]} 29. Kc3 {[%emt 0:
00:00]} Rh5 {[%emt 0:05:13]} 30. Kc4 {[%emt 0:01:59]} a6 {[%emt 0:01:20]} 31.
b3 {[%emt 0:01:48]} Re5 {[%emt 0:01:17]} 32. Ne4 {[%emt 0:03:39]} Bf5 {[%emt 0:
00:00]} 33. Nd6 {[%emt 0:01:13]} Nd7 {[%emt 0:01:26]} 34. h5 {[%emt 0:01:12]}
Bb1 {[%emt 0:01:07]} 35. h6+ {[%emt 0:02:06]} Kh7 {[%emt 0:00:49]} 36. a4 {
[%emt 0:02:46]} Re3 {[%emt 0:02:36]} 37. Rf2 {[%emt 0:08:37]} Ne5+ {[%emt 0:00:
00]} 38. Kd4 {[%emt 0:04:07]} Rd3+ {[%emt 0:00:21]} 39. Ke4 {[%emt 0:04:30]}
Rf3+ {[%emt 0:00:23]} 40. Kd4 {[%emt 0:00:48]} Rxf2 {[%emt 0:00:23]} 41. Ne8 {
[%emt 0:34:56]} Nd7 {[%emt 0:31:06]} 42. Nc7 {[%emt 0:03:27]} a5 {[%emt 0:00:
00]} 43. Na8 {[%emt 0:00:55]} Rf4+ {[%emt 0:00:20]} 44. Kc3 {[%emt 0:00:57]}
Rb4 {[%emt 0:00:16]} 45. Kb2 {[%emt 0:01:23]} Be4 {[%emt 0:00:24]} 46. Nc7 {
[%emt 0:00:17]} g5 {[%emt 0:00:16]} 47. Kc3 {[%emt 0:00:30]} g4 {[%emt 0:00:19]
} 48. Na6 {[%emt 0:00:08]} Bxd5 {[%emt 0:00:16]} 49. Nxb4 {[%emt 0:00:31]}
axb4+ {[%emt 0:00:14]} 50. Kxb4 {[%emt 0:00:08]} g3 {[%emt 0:00:30]} 0-1

[Event "44th Chess Olympiad Open 2022"]
[Site "Chennai"]
[Date "2022.08.03"]
[Round "6.85"]
[White "Mujahid Bin Yazeed"]
[Black "Prasad, Rudr"]
[Result "*"]
[WhiteElo "1418"]
[BlackElo "1566"]
[Annotator "NA RC"]
[PlyCount "90"]
[EventDate "2022.??.??"]
[TimeControl "60"]

1. e4 {[%emt 0:00:03]} c6 {[%emt 0:00:12]} 2. d4 {[%emt 0:00:07]} d5 {[%emt 0:
00:00]} 3. e5 {[%emt 0:00:24]} c5 {[%emt 0:00:19]} 4. c3 {[%emt 0:00:11]} cxd4
{[%emt 0:00:05]} 5. cxd4 {[%emt 0:00:05]} Nc6 {[%emt 0:00:28]} 6. Bb5 {[%emt 0:
00:00]} Bf5 {[%emt 0:01:15]} 7. Nc3 {[%emt 0:00:54]} e6 {[%emt 0:00:37]} 8.
Nge2 {[%emt 0:02:31]} Nge7 {[%emt 0:04:04]} 9. O-O {[%emt 0:01:14]} h5 {
[%emt 0:02:27]} 10. Bg5 {[%emt 0:01:42]} Qb6 {[%emt 0:03:35]} 11. Qb3 {[%emt 0:
00:00]} O-O-O {[%emt 0:04:20]} 12. Na4 {[%emt 0:02:23]} Qc7 {[%emt 0:05:55]}
13. Rac1 {[%emt 0:04:53]} a6 {[%emt 0:06:09]} 14. Bxc6 {[%emt 0:03:11]} Nxc6 {
[%emt 0:01:26]} 15. Nb6+ {[%emt 0:02:50]} Kb8 {[%emt 0:01:01]} 16. Bxd8 {
[%emt 0:00:19]} Qxd8 {[%emt 0:00:04]} 17. Na4 {[%emt 0:05:34]} Na5 {[%emt 0:00:
00]} 18. Qc3 {[%emt 0:00:59]} f6 {[%emt 0:03:14]} 19. Nc5 {[%emt 0:11:22]} fxe5
{[%emt 0:02:23]} 20. dxe5 {[%emt 0:02:17]} Nc4 {[%emt 0:04:45]} 21. b4 {
[%emt 0:02:19]} Bxc5 {[%emt 0:02:24]} 22. bxc5 {[%emt 0:00:08]} Qc7 {[%emt 0:
00:00]} 23. Nd4 {[%emt 0:10:58]} Qxe5 {[%emt 0:03:47]} 24. Nxf5 {[%emt 0:01:59]
} Qxf5 {[%emt 0:01:45]} 25. Qxg7 {[%emt 0:03:25]} Rh7 {[%emt 0:05:26]} 26. Qg8+
{[%emt 0:01:32]} Kc7 {[%emt 0:00:06]} 27. Rfe1 {[%emt 0:08:33]} Rf7 {[%emt 0:
00:00]} 28. Qg3+ {[%emt 0:01:24]} Kc6 {[%emt 0:02:09]} 29. Rxc4 {[%emt 0:15:18]
} dxc4 {[%emt 0:00:07]} 30. Qd6+ {[%emt 0:00:07]} Kb5 {[%emt 0:00:03]} 31. a4+
{[%emt 0:05:03]} Kxa4 {[%emt 0:01:59]} 32. Ra1+ {[%emt 0:00:23]} Kb3 {[%emt 0:
00:00]} 33. Qb6+ {[%emt 0:00:30]} Kc2 {[%emt 0:02:36]} 34. Ra2+ {[%emt 0:01:45]
} Kd3 {[%emt 0:02:48]} 35. c6 {[%emt 0:02:07]} Qf4 {[%emt 0:03:25]} 36. g3 {
[%emt 0:01:05]} Qf3 {[%emt 0:01:31]} 37. Qb1+ {[%emt 0:00:57]} Kd4 {[%emt 0:00:
00]} 38. Rd2+ {[%emt 0:00:20]} Kc5 {[%emt 0:01:10]} 39. cxb7 {[%emt 0:00:56]}
Rxb7 {[%emt 0:00:26]} 40. Qa1 {[%emt 0:00:45]} Qe4 {[%emt 0:01:29]} 41. Qa5+ {
[%emt 0:31:32]} Rb5 {[%emt 0:33:04]} 42. Qa3+ {[%emt 0:01:33]} Kb6 {[%emt 0:00:
00]} 43. Rd1 {[%emt 0:00:00]} Qc6 {[%emt 0:00:00]} 44. Qe3+ {[%emt 0:02:04]}
Kb7 {[%emt 0:00:00]} 45. Re1 {[%emt 0:00:00]} c3 {[%emt 0:00:00]} *

[Event "44th Chess Olympiad Open 2022"]
[Site "Chennai"]
[Date "2022.08.03"]
[Round "6.86"]
[White "Gontcharov, Serguei"]
[Black "Young, Christopher"]
[Result "1/2-1/2"]
[WhiteElo "1864"]
[BlackElo "1990"]
[Annotator "NA RC"]
[PlyCount "82"]
[EventDate "2022.??.??"]
[TimeControl "60"]

1. e4 {[%emt 0:00:04]} c5 {[%emt 0:00:12]} 2. Nf3 {[%emt 0:00:05]} e6 {[%emt 0:
00:00]} 3. d4 {[%emt 0:00:07]} cxd4 {[%emt 0:00:04]} 4. Nxd4 {[%emt 0:00:04]}
a6 {[%emt 0:00:06]} 5. c4 {[%emt 0:00:46]} Qc7 {[%emt 0:00:07]} 6. a3 {[%emt 0:
00:00]} Nc6 {[%emt 0:00:26]} 7. Nc3 {[%emt 0:00:48]} Nf6 {[%emt 0:00:22]} 8.
Be3 {[%emt 0:00:40]} Be7 {[%emt 0:00:28]} 9. Be2 {[%emt 0:01:39]} O-O {[%emt 0:
00:00]} 10. O-O {[%emt 0:00:11]} d6 {[%emt 0:05:48]} 11. Rc1 {[%emt 0:00:34]}
Bd7 {[%emt 0:01:59]} 12. b4 {[%emt 0:01:16]} Rac8 {[%emt 0:33:09]} 13. Nb3 {
[%emt 0:07:26]} Qb8 {[%emt 0:09:28]} 14. Bf4 {[%emt 0:03:47]} Ne5 {[%emt 0:00:
00]} 15. Bxe5 {[%emt 0:00:10]} dxe5 {[%emt 0:00:06]} 16. c5 {[%emt 0:03:17]}
Rfd8 {[%emt 0:00:46]} 17. Qc2 {[%emt 0:10:22]} Qa7 {[%emt 0:08:06]} 18. Qb2 {
[%emt 0:12:42]} b6 {[%emt 0:02:13]} 19. cxb6 {[%emt 0:02:28]} Qxb6 {[%emt 0:00:
00]} 20. Bf3 {[%emt 0:05:57]} Bc6 {[%emt 0:07:09]} 21. Rfd1 {[%emt 0:03:28]}
Nd7 {[%emt 0:01:05]} 22. Na5 {[%emt 0:02:48]} Bg5 {[%emt 0:08:05]} 23. Rb1 {
[%emt 0:06:10]} Qc7 {[%emt 0:02:33]} 24. Nxc6 {[%emt 0:06:15]} Qxc6 {[%emt 0:
00:00]} 25. Ne2 {[%emt 0:01:06]} Qc2 {[%emt 0:04:32]} 26. g3 {[%emt 0:07:01]}
g6 {[%emt 0:01:16]} 27. h4 {[%emt 0:01:25]} Be7 {[%emt 0:02:15]} 28. Kg2 {
[%emt 0:05:02]} Nb6 {[%emt 0:01:41]} 29. Rxd8+ {[%emt 0:03:15]} Bxd8 {[%emt 0:
00:00]} 30. Qxc2 {[%emt 0:05:20]} Rxc2 {[%emt 0:00:01]} 31. b5 {[%emt 0:00:52]}
axb5 {[%emt 0:01:11]} 32. Rxb5 {[%emt 0:00:25]} Ra2 {[%emt 0:00:04]} 33. Ra5 {
[%emt 0:01:15]} Be7 {[%emt 0:01:23]} 34. Rxe5 {[%emt 0:06:14]} Rxa3 {[%emt 0:
00:00]} 35. Rb5 {[%emt 0:00:44]} Nc4 {[%emt 0:00:19]} 36. Nd4 {[%emt 0:01:44]}
Nd2 {[%emt 0:01:28]} 37. Rb8+ {[%emt 0:01:59]} Bf8 {[%emt 0:00:41]} 38. Rd8 {
[%emt 0:00:09]} Nxf3 {[%emt 0:00:19]} 39. Nxf3 {[%emt 0:00:02]} Kg7 {[%emt 0:
00:00]} 40. Rd2 {[%emt 0:00:38]} Bb4 {[%emt 0:00:40]} 41. Re2 {[%emt 0:30:17]}
Ra5 {[%emt 0:03:49]} 1/2-1/2

[Event "44th Chess Olympiad Open 2022"]
[Site "Chennai"]
[Date "2022.08.03"]
[Round "6.86"]
[White "Tracey, Shaun M"]
[Black "Gontcharov, Dimitri"]
[Result "1-0"]
[WhiteElo "1650"]
[BlackElo "1448"]
[Annotator "NA RC"]
[PlyCount "85"]
[EventDate "2022.??.??"]
[TimeControl "60"]

1. e4 {[%emt 0:00:02]} c5 {[%emt 0:00:13]} 2. Nc3 {[%emt 0:00:05]} e6 {[%emt 0:
00:00]} 3. f4 {[%emt 0:00:06]} d5 {[%emt 0:00:10]} 4. Nf3 {[%emt 0:00:23]} dxe4
{[%emt 0:00:54]} 5. Nxe4 {[%emt 0:00:12]} Nf6 {[%emt 0:00:16]} 6. Bb5+ {
[%emt 0:01:40]} Nc6 {[%emt 0:03:42]} 7. Bxc6+ {[%emt 0:01:21]} bxc6 {[%emt 0:
00:00]} 8. Qe2 {[%emt 0:00:48]} Be7 {[%emt 0:07:36]} 9. d3 {[%emt 0:04:52]} Ba6
{[%emt 0:02:43]} 10. b3 {[%emt 0:05:49]} Qa5+ {[%emt 0:16:05]} 11. Bd2 {
[%emt 0:01:21]} Qc7 {[%emt 0:02:58]} 12. O-O {[%emt 0:02:16]} O-O {[%emt 0:00:
00]} 13. Ne5 {[%emt 0:01:33]} Rad8 {[%emt 0:08:11]} 14. Rad1 {[%emt 0:11:14]}
Rd4 {[%emt 0:15:42]} 15. Nxf6+ {[%emt 0:06:22]} Bxf6 {[%emt 0:01:04]} 16. Ng4 {
[%emt 0:07:06]} Be7 {[%emt 0:04:03]} 17. Be3 {[%emt 0:01:55]} Rdd8 {[%emt 0:00:
00]} 18. Qf2 {[%emt 0:06:14]} c4 {[%emt 0:09:52]} 19. dxc4 {[%emt 0:02:52]} c5
{[%emt 0:00:35]} 20. Ne5 {[%emt 0:04:44]} Bd6 {[%emt 0:02:38]} 21. Rxd6 {
[%emt 0:06:00]} Qxd6 {[%emt 0:01:21]} 22. Bxc5 {[%emt 0:00:32]} Qc7 {[%emt 0:
00:00]} 23. Bxf8 {[%emt 0:00:38]} Kxf8 {[%emt 0:00:47]} 24. Nd3 {[%emt 0:01:10]
} Bb7 {[%emt 0:00:57]} 25. Qc5+ {[%emt 0:00:41]} Qxc5+ {[%emt 0:00:45]} 26.
Nxc5 {[%emt 0:00:01]} Bc8 {[%emt 0:00:51]} 27. Nd3 {[%emt 0:02:52]} Ke7 {
[%emt 0:02:32]} 28. Re1 {[%emt 0:00:00]} Rd6 {[%emt 0:03:11]} 29. Kf2 {[%emt 0:
00:00]} f6 {[%emt 0:01:07]} 30. Ke3 {[%emt 0:00:00]} Bb7 {[%emt 0:01:00]} 31.
g3 {[%emt 0:00:00]} a5 {[%emt 0:02:02]} 32. Re2 {[%emt 0:02:03]} Kd7 {[%emt 0:
00:00]} 33. Nc5+ {[%emt 0:00:38]} Kc7 {[%emt 0:00:17]} 34. Nxb7 {[%emt 0:00:13]
} Kxb7 {[%emt 0:00:08]} 35. Rd2 {[%emt 0:00:05]} Rxd2 {[%emt 0:00:42]} 36. Kxd2
{[%emt 0:00:01]} Kc6 {[%emt 0:00:22]} 37. Kd3 {[%emt 0:00:36]} Kc5 {[%emt 0:00:
00]} 38. a3 {[%emt 0:01:27]} g6 {[%emt 0:00:30]} 39. c3 {[%emt 0:00:57]} g5 {
[%emt 0:00:46]} 40. b4+ {[%emt 0:00:35]} axb4 {[%emt 0:00:07]} 41. cxb4+ {
[%emt 0:30:02]} Kc6 {[%emt 0:30:22]} 42. fxg5 {[%emt 0:00:07]} f5 {[%emt 0:00:
00]} 43. Kd4 {[%emt 0:00:11]} 1-0